bitfinex-derivatives/quotes_SOLF0:USTF0_20250714
["timestamp","ask_amount","ask_price","bid_price","bid_amount"]
[1752502185037,6.58357171,168.5,168.4,6.58357171]
[1752502185340,11.55145667,168.5,168.41,6.0988302]
[1752502185529,186.42788496,168.51,168.42,6.0988302]
[1752502185732,186.42788496,168.51,168.43,6.0988302]
[1752502185733,10.90288496,168.5,168.43,6.0988302]
[1752502186041,11.55145667,168.5,168.44,6.0988302]
[1752502186340,11.55145667,168.5,168.4,6.58357171]
[1752502186341,11.55145667,168.5,168.45,6.0988302]
[1752502186530,11.55145667,168.5,168.46,6.0988302]
[1752502186735,181.2,168.49,168.4,6.58357171]
[1752502186939,181.2,168.49,168.43,5.9355]
[1752502187144,181.2,168.49,168.44,6.09829664]
[1752502187444,181.2,168.49,168.45,6.09829664]
[1752502187739,181.2,168.49,168.43,5.9355]
[1752502187740,181.2,168.49,168.46,6.09873426]
[1752502187939,181.2,168.49,168.47,6.09873426]
[1752502188239,181.2,168.49,168.48,6.09873426]
[1752502188846,187.14,168.49,168.48,6.09873426]
[1752502189152,204.97,168.49,168.35,6.58357171]
[1752502189342,6.58357171,168.44,168.35,6.58357171]
[1752502189653,182.8,168.43,168.35,6.58357171]
[1752502189837,182.8,168.43,168.39,5.9368]
[1752502190238,6.58357171,168.47,168.37,6.58357171]
[1752502190448,182.76,168.44,168.3,11.46010104]
[1752502190646,182.76,168.44,168.37,6.58357171]
[1752502191639,182.66,168.47,168.41,6.58357171]
[1752502192248,182.66,168.47,168.43,5.9357]
[1752502192449,182.66,168.47,168.41,6.58357171]
[1752502193044,182.66,168.47,168.33,4.87652933]
[1752502193248,182.66,168.47,168.39,6.58357171]
[1752502193450,182.66,168.47,168.42,5.9358]
[1752502193645,182.66,168.47,168.32,16.75502933]
[1752502193851,182.66,168.47,168.39,6.58357171]
[1752502194054,182.66,168.47,168.4,5.9366]
[1752502194753,182.66,168.47,168.39,6.58357171]
[1752502195348,182.66,168.47,168.39,12.52057171]
[1752502195546,182.66,168.47,168.37,6.58357171]
[1752502195748,182.66,168.47,168.36,6.58357171]
[1752502196253,182.66,168.47,168.39,5.937]
[1752502197355,182.66,168.47,168.38,5.9375]
[1752502197558,6.58357171,168.46,168.38,5.9375]
[1752502198056,6.58357171,168.46,168.39,5.9371]
[1752502198250,6.58357171,168.46,168.36,6.58357171]
[1752502199055,11.56513198,168.46,168.38,5.9373]
[1752502199252,6.58357171,168.46,168.36,6.58357171]
[1752502199457,11.56513198,168.46,168.36,6.58357171]
[1752502199754,11.56513198,168.46,168.37,5.9376]
[1752502200152,11.56513198,168.46,168.36,6.58357171]
[1752502200952,11.56513198,168.46,168.37,5.9376]
[1752502201158,11.56513198,168.46,168.38,6.08887098]
[1752502201460,6.58357171,168.42,168.39,6.08887098]
[1752502201653,6.58357171,168.42,168.4,6.08887098]
[1752502201853,6.58357171,168.42,168.41,6.08887098]
[1752502202252,6.58357171,168.42,168.25,517.87652933]
[1752502202457,6.58357171,168.4,168.3,6.58357171]
[1752502202652,6.58357171,168.4,168.31,6.0884504]
[1752502202852,6.58357171,168.4,168.33,5.939]
[1752502203053,6.58357171,168.38,168.34,6.0884504]
[1752502203356,6.58357171,168.38,168.29,5.9404]
[1752502203552,6.58357171,168.38,168.3,6.09283112]
[1752502203757,6.58357171,168.38,168.31,6.09283112]
[1752502203953,6.58357171,168.38,168.32,6.09283112]
[1752502204151,6.58357171,168.38,168.33,6.09283112]
[1752502204353,6.58357171,168.41,168.34,6.09283112]
[1752502204555,6.58357171,168.37,168.35,6.09283112]
[1752502204755,6.58357171,168.37,168.36,6.09283112]
[1752502204961,6.59094022,168.37,168.36,6.09283112]
[1752502205259,12.53094022,168.37,168.22,182.18]
[1752502205462,188.31094022,168.4,168.23,6.59094022]
[1752502205463,12.52594022,168.33,168.23,6.59094022]
[1752502205655,194.18594022,168.33,168.23,6.59094022]
[1752502205857,188.25094022,168.33,168.23,6.59094022]
[1752502206359,188.25094022,168.33,168.27,5.9413]
[1752502206557,194.18594022,168.33,168.22,6.59094022]
[1752502207558,194.18594022,168.33,168.25,5.9419]
[1752502207953,6.59094022,168.31,168.23,5.9425]
[1752502208253,187.595,168.33,168.18,6.59094022]
[1752502208254,6.59094022,168.29,168.18,6.59094022]
[1752502209057,6.59094022,168.27,168.18,6.59094022]
[1752502209363,6.59094022,168.25,168.15,6.59094022]
[1752502209756,6.59094022,168.25,168.18,5.9445]
[1752502209957,6.59094022,168.25,168.14,6.59094022]
[1752502210363,6.59094022,168.25,168.16,6.59094022]
[1752502210966,6.59094022,168.25,168.18,5.9442]
[1752502211158,6.59094022,168.25,168.1,130.00452836]
[1752502211358,6.60117828,168.22,168.14,5.9457]
[1752502211555,6.60117828,168.22,168.12,6.60117828]
[1752502212263,181.68,168.23,168.14,6.60117828]
[1752502212464,181.68,168.23,168.1,130.01476642]
[1752502212662,188.28117828,168.23,168.1,123.41358814]
[1752502212868,6.60117828,168.19,168.04,4.87652933]
[1752502213067,6.60117828,168.19,168.12,5.9464]
[1752502213263,6.60117828,168.17,168.03,1.03512894]
[1752502213459,6.60117828,168.17,168.1,5.947]
[1752502213666,6.60117828,168.17,168.06,6.60117828]
[1752502213667,181.66,168.16,168.06,6.60117828]
[1752502213968,6.60117828,168.15,168.06,6.60117828]
[1752502214470,6.60117828,168.13,168.04,6.60117828]
[1752502214666,5.9473,168.11,168.07,5.9482]
[1752502215169,5.9473,168.11,168.01,513.32]
[1752502215170,6.60117828,168.17,168.06,6.60117828]
[1752502215365,181.56,168.16,168.06,6.60117828]
[1752502215568,6.60117828,168.19,168.08,6.60117828]
[1752502215768,5.9459,168.15,168.11,5.9468]
[1752502215970,6.60117828,168.17,168.08,6.60117828]
[1752502216268,5.9473,168.11,168.03,6.60117828]
[1752502216571,6.61193635,168.04,167.81,4.87652933]
[1752502216868,6.61193635,168.04,167.8,513.62]
[1752502216869,6.61193635,168.0,167.9,6.61193635]
[1752502217370,5.9515,167.99,167.93,5.9534]
[1752502217564,6.61193635,168.04,167.92,6.61193635]
[1752502217771,5.9501,168.03,167.97,5.9517]
[1752502217963,181.62,168.05,167.97,5.9517]
[1752502218276,5.9512,167.99,167.93,5.9531]
[1752502218567,6.61682596,168.02,167.92,6.61682596]
[1752502218762,5.9506,168.01,167.94,6.61682596]
[1752502218966,6.61682596,168.04,167.95,5.9523]
[1752502219369,6.61682596,168.02,167.91,6.61682596]
[1752502219670,6.61682596,168.0,167.91,6.61682596]
[1752502220369,6.61682596,168.0,167.9,6.61682596]
[1752502220869,6.61682596,168.02,167.92,6.61682596]
[1752502221072,17.83,168.09,167.96,6.61682596]
[1752502221073,6.61682596,168.06,167.96,6.61682596]
[1752502221277,6.61682596,168.09,168.0,6.61682596]
[1752502221768,6.61682596,168.07,167.9,6.61682596]
[1752502221974,6.61682596,168.05,167.96,6.61682596]
[1752502222175,6.61682596,168.03,167.94,6.61682596]
[1752502222475,6.61682596,168.07,167.96,6.61682596]
[1752502223067,6.61682596,168.05,167.94,6.61682596]
[1752502223873,6.61682596,168.07,167.96,6.61682596]
[1752502224172,181.46,168.11,168.05,5.9491]
[1752502224373,181.46,168.11,168.02,6.61682596]
[1752502224572,181.46,168.11,168.01,6.61682596]
[1752502224767,6.61682596,168.1,168.0,6.61682596]
[1752502224967,6.61682596,168.08,167.91,514.0]
[1752502225174,5.949,168.06,168.01,5.9505]
[1752502225374,6.61682596,168.06,167.96,6.61682596]
[1752502225973,5.9497,168.04,167.99,5.951]
[1752502226173,6.61682596,168.06,167.99,5.951]
[1752502226475,5.9505,168.02,167.96,6.61682596]
[1752502226680,5.935,168.1,167.96,6.61682596]
[1752502226978,5.9498,168.03,167.96,6.61682596]
[1752502227178,6.61682596,168.06,167.96,6.61682596]
[1752502227573,5.9506,168.01,167.93,6.61682596]
[1752502227776,6.61682596,168.02,167.93,6.61682596]
[1752502227978,5.951,168.0,167.91,514.0]
[1752502228178,6.61682596,168.02,167.92,6.61682596]
[1752502228671,5.9516,167.98,167.95,5.9524]
[1752502228876,6.61682596,168.02,167.95,5.9524]
[1752502229074,5.9519,167.98,167.93,5.9534]
[1752502229281,6.61682596,168.0,167.9,6.61682596]
[1752502229579,6.61682596,168.0,167.94,5.953]
[1752502229782,6.61682596,168.0,167.9,6.61682596]
[1752502229988,17.83,168.06,167.85,1.03642374]
[1752502230181,5.9525,167.96,167.89,6.61682596]
[1752502230382,6.61682596,167.97,167.87,6.61682596]
[1752502230882,5.953,167.94,167.9,5.9542]
[1752502231083,6.61682596,167.99,167.89,6.61682596]
[1752502231374,6.61682596,167.99,167.87,6.61682596]
[1752502231582,6.61682596,167.97,167.87,6.61682596]
[1752502232181,6.61682596,167.95,167.86,6.61682596]
[1752502232584,5.9531,167.94,167.91,5.954]
[1752502232784,6.61682596,167.95,167.86,6.61682596]
[1752502233082,187.85682596,168.0,167.86,6.61682596]
[1752502233286,5.954,167.92,167.88,5.9551]
[1752502233778,5.9536,167.93,167.89,5.9547]
[1752502233980,531.97,168.02,167.86,6.61682596]
[1752502233981,6.61682596,167.96,167.86,6.61682596]
[1752502234171,187.79682596,167.98,167.88,6.61682596]
[1752502234378,6.61682596,168.0,167.9,6.61682596]
[1752502234684,6.61682596,168.0,167.89,6.61682596]
[1752502234879,5.9526,167.96,167.92,5.9537]
[1752502235084,5.9526,167.96,167.84,11.9132]
[1752502235283,5.9526,167.96,167.88,6.61682596]
[1752502235479,6.61682596,167.99,167.88,6.61682596]
[1752502235682,6.61682596,167.97,167.88,6.61682596]
[1752502235876,6.61682596,167.97,167.86,6.61682596]
[1752502236078,6.61682596,167.97,167.9,5.9544]
[1752502236477,6.61682596,167.97,167.91,5.9538]
[1752502236685,6.61682596,167.97,167.87,6.61682596]
[1752502237276,5.9527,167.95,167.92,5.9537]
[1752502237476,6.61682596,167.97,167.83,515.17653179]
[1752502237477,6.61682596,168.01,167.91,6.61682596]
[1752502237684,695.02,168.02,167.83,515.17653179]
[1752502237881,5.9511,168.0,167.93,6.61682596]
[1752502238083,695.02,168.02,167.93,6.61682596]
[1752502238587,514.14,168.02,167.95,6.61682596]
[1752502239085,5.9506,168.01,167.98,5.9513]
[1752502239286,514.14,168.02,167.95,6.61682596]
[1752502239679,514.14,168.02,167.93,6.61682596]
[1752502240282,520.0905,168.02,167.98,5.9514]
[1752502240486,520.0905,168.02,167.88,11.9099]
[1752502240487,514.14,168.02,167.97,6.61682596]
[1752502240886,5.9496,168.04,167.97,6.61682596]
[1752502241291,180.66,168.06,167.97,6.61682596]
[1752502241789,180.66,168.06,167.96,6.61682596]
[1752502241992,180.66,168.06,167.9,6.61682596]
[1752502242289,180.66,168.06,167.97,6.61682596]
[1752502243193,520.99682596,168.1,168.01,6.61682596]
[1752502243393,695.0,168.1,168.03,6.61682596]
[1752502243593,5.9481,168.08,168.04,5.9494]
[1752502243887,5.9481,168.08,168.01,6.61682596]
[1752502244082,6.61682596,168.08,167.99,6.61682596]
[1752502244281,5.9497,168.04,168.01,5.9504]
[1752502244488,6.61682596,168.06,167.97,6.61682596]
[1752502244693,12.56642596,168.04,168.01,5.9505]
[1752502244990,5.9496,168.04,168.01,5.9505]
[1752502245887,5.9492,168.05,168.02,5.9502]
[1752502246191,6.61682596,168.09,167.99,6.61682596]
[1752502246387,695.0,168.1,167.99,6.61682596]
[1752502246585,6.61682596,168.08,167.99,6.61682596]
[1752502247192,695.0,168.1,167.99,6.61682596]
[1752502247486,6.61682596,168.08,167.99,6.61682596]
[1752502247691,5.9497,168.04,168.0,5.9506]
[1752502247889,180.46,168.04,167.95,6.61682596]
[1752502248290,6.61682596,168.03,167.93,6.61682596]
[1752502249091,180.46,168.04,167.95,6.61682596]
[1752502249289,180.46,168.04,167.97,6.61682596]
[1752502249487,514.38,168.1,168.01,6.61682596]
[1752502249681,514.38,168.1,167.9,187.23682596]
[1752502249682,694.82,168.1,167.93,11.9064]
[1752502249886,6.61682596,168.09,167.98,6.61682596]
[1752502250186,6.61682596,168.09,168.02,5.9499]
[1752502250187,5.9492,168.05,168.02,5.9499]
[1752502250386,6.61682596,168.09,167.98,6.61682596]
[1752502250586,6.61682596,168.07,167.98,6.61682596]
[1752502250989,5.9503,168.02,167.99,5.9512]
[1752502251388,5.9499,168.03,168.0,5.9508]
[1752502251586,6.61682596,168.07,167.9,187.23682596]
[1752502251790,6.61682596,168.07,167.96,6.61682596]
[1752502251994,6.61682596,168.05,167.94,6.61682596]
[1752502252196,180.56,168.04,167.94,6.61682596]
[1752502252393,6.61682596,168.03,167.94,6.61682596]
[1752502253092,5.951,168.0,167.97,5.9518]
[1752502253488,6.61682596,168.03,167.94,6.61682596]
[1752502253897,5.9515,167.99,167.96,5.9523]
[1752502254198,12.55182596,168.03,167.94,6.61682596]
[1752502254389,6.61682596,168.03,167.96,5.9523]
[1752502254590,187.17682596,168.04,167.94,6.61682596]
[1752502255700,5.9508,168.01,167.98,5.9513]
[1752502255993,180.56,168.04,167.98,5.9513]
[1752502256198,5.9509,168.0,167.98,5.9513]
[1752502257085,180.56,168.04,167.99,5.9512]
[1752502257397,180.56,168.04,167.9,6.61682596]
[1752502257398,180.4,168.05,167.97,6.61682596]
[1752502257996,5.9503,168.02,167.99,5.9511]
[1752502259099,5.9506,168.01,167.99,5.9511]
[1752502259398,5.935,168.03,167.93,6.61682596]
[1752502259601,5.9511,168.0,167.93,6.61682596]
[1752502259791,5.935,168.03,167.93,6.61682596]
[1752502259993,6.61682596,168.02,167.92,6.61682596]
[1752502260297,6.61682596,168.02,167.95,5.9527]
[1752502260494,6.61682596,168.02,167.92,6.61682596]
[1752502260697,5.9529,167.95,167.9,6.61682596]
[1752502260895,180.26,167.99,167.86,4.87652933]
[1752502261090,5.9533,167.94,167.89,6.61682596]
[1752502261394,6.61682596,167.98,167.86,4.87652933]
[1752502261600,6.61682596,167.98,167.87,6.61682596]
[1752502262192,180.26,167.99,167.89,6.61682596]
[1752502262803,5.9526,167.96,167.89,6.61682596]
[1752502263103,180.26,167.99,167.93,6.61682596]
[1752502263297,5.9518,167.98,167.93,6.61682596]
[1752502263701,5.9518,167.98,167.95,5.9525]
[1752502263903,5.952,167.97,167.93,6.61682596]
[1752502264406,5.9525,167.96,167.93,5.9533]
[1752502264605,180.26,167.99,167.91,6.61682596]
[1752502265000,180.26,167.99,167.93,5.9534]
[1752502265702,180.26,167.99,167.92,5.9536]
[1752502265906,186.87682596,167.99,167.89,6.61682596]
[1752502266715,5.9529,167.95,167.89,6.61682596]
[1752502266900,186.87682596,167.99,167.89,6.61682596]
[1752502267211,186.87682596,167.99,167.86,16.85466947]
[1752502267415,186.87682596,167.99,167.9,6.61682596]
[1752502267914,5.9529,167.95,167.9,6.61682596]
[1752502268508,186.87682596,167.99,167.92,6.61682596]
[1752502268509,180.26,167.99,167.92,6.61682596]
[1752502269411,4.99625739,168.03,167.96,6.61682596]
[1752502269611,6.63588414,168.05,167.98,6.61682596]
[1752502269612,180.28,168.05,167.98,6.61682596]
[1752502270016,5.9505,168.02,167.99,5.9511]
[1752502270519,5.9506,168.01,167.98,12.56822596]
[1752502270710,180.28,168.05,167.98,6.61682596]
[1752502270910,6.61682596,168.04,167.95,6.61682596]
[1752502271312,6.61682596,168.04,167.96,5.9521]
[1752502271819,6.61682596,168.04,167.97,5.9519]
[1752502272420,6.61682596,168.04,167.96,5.9523]
[1752502272717,6.61682596,168.04,167.94,6.61682596]
[1752502272917,11.61308335,168.04,167.94,6.61682596]
[1752502273110,11.61308335,168.04,167.95,5.9525]
[1752502273510,6.61682596,168.02,167.91,6.61682596]
[1752502273706,11.61308335,168.02,167.91,6.61682596]
[1752502274112,11.61308335,168.02,167.93,5.9532]
[1752502274423,29.44308335,168.02,167.9,6.61682596]
[1752502274616,6.61682596,168.0,167.9,6.61682596]
[1752502274817,180.28,167.99,167.87,4.94286947]
[1752502275024,180.28,167.99,167.93,5.9532]
[1752502275224,180.28,167.99,167.92,6.61682596]
[1752502275225,180.28,167.99,167.94,5.94186174]
[1752502275424,180.28,167.99,167.95,5.94186174]
[1752502275626,186.2315,167.99,167.96,11.89396174]
[1752502275823,180.28,167.99,167.97,5.94186174]
[1752502276119,180.28,167.99,167.98,5.94186174]
[1752502276424,186.2312,167.99,167.98,5.94186174]
[1752502277022,186.2312,167.99,167.92,12.57042596]
[1752502277023,180.28,167.99,167.92,6.61682596]
[1752502277226,5.9525,167.96,167.93,5.9410606]
[1752502277522,180.28,167.99,167.94,5.9410606]
[1752502277736,4.99625739,168.01,167.95,5.94356482]
[1752502278024,185.25625739,168.03,167.96,12.56039078]
[1752502278218,180.26,168.03,167.97,5.94356482]
[1752502278423,180.26,168.03,167.98,5.94356482]
[1752502278616,5.9509,168.0,167.99,5.94356482]
[1752502278821,180.26,168.03,167.99,5.94356482]
[1752502279129,5.9506,168.01,168.0,5.94356482]
[1752502281125,5.9504,168.02,168.0,5.94356482]
[1752502281430,5.9504,168.02,168.01,5.94356482]
[1752502282925,180.26,168.03,168.01,5.94356482]
[1752502283125,180.26,168.03,168.02,5.94356482]
[1752502283528,4.99625739,168.05,168.02,5.94356482]
[1752502283827,180.24,168.07,168.03,5.94356482]
[1752502284027,180.24,168.07,168.04,5.94356482]
[1752502284226,180.24,168.07,168.05,5.94356482]
[1752502284428,186.1886,168.07,168.06,5.94356482]
[1752502284626,514.4,168.08,168.06,5.94356482]
[1752502284827,514.4,168.08,168.04,6.61093171]
[1752502284828,514.4,168.08,168.07,5.94356482]
[1752502285027,5.9481,168.08,168.07,5.94356482]
[1752502285829,5.9481,168.08,168.04,12.56013171]
[1752502286029,5.9484,168.07,168.04,12.56013171]
[1752502286229,180.24,168.09,168.04,6.61093171]
[1752502287531,5.9481,168.08,168.05,5.9294187]
[1752502287731,180.24,168.09,168.06,5.9294187]
[1752502287932,180.24,168.09,168.07,5.9294187]
[1752502288128,186.1877,168.09,168.08,5.9294187]
[1752502288526,180.24,168.09,168.08,5.9294187]
[1752502288721,4.99625739,168.13,168.08,5.9294187]
[1752502288926,180.2,168.13,168.09,5.9294187]
[1752502289129,180.2,168.13,168.0,6.61093171]
[1752502289130,5.9466,168.12,168.1,5.9294187]
[1752502289321,5.9466,168.12,168.11,5.9294187]
[1752502290232,180.2,168.13,168.11,5.9294187]
[1752502290430,180.2,168.13,168.12,5.9294187]
[1752502290937,186.1463,168.13,168.12,5.9294187]
[1752502292425,5.9463,168.13,168.12,5.9294187]
[1752502295937,5.9471,168.11,168.08,12.55893171]
[1752502296138,5.9471,168.11,168.09,5.89422866]
[1752502296337,180.14,168.16,168.1,5.89422866]
[1752502296538,180.14,168.16,168.11,5.89422866]
[1752502296742,186.75093171,168.16,168.07,6.61093171]
[1752502297033,186.75093171,168.16,168.08,5.89229394]
[1752502297240,5.9473,168.11,168.09,5.89229394]
[1752502297438,5.9473,168.11,168.1,5.89229394]
[1752502297837,5.9468,168.12,168.1,5.89229394]
[1752502298038,180.14,168.16,168.11,5.89229394]
[1752502298232,180.14,168.16,168.0,11.55380118]
[1752502298233,5.9452,168.16,168.13,6.61093171]
[1752502298436,186.69093171,168.22,168.14,5.89229394]
[1752502298638,1.03515974,168.24,168.05,525.9579]
[1752502298835,21.83422622,168.31,168.13,6.61093171]
[1752502298836,6.61093171,168.23,168.13,6.61093171]
[1752502299037,6.61093171,168.21,168.14,5.88103188]
[1752502299236,5.9458,168.15,168.05,514.06]
[1752502299434,6.61093171,168.19,168.06,5.87936682]
[1752502299741,6.61093171,168.19,168.11,5.9468]
[1752502300040,6.61093171,168.19,168.12,5.87936682]
[1752502300239,6.61093171,168.19,168.1,6.61093171]
[1752502300437,6.61093171,168.19,168.11,5.87971171]
[1752502300740,6.61093171,168.17,168.09,5.9477]
[1752502300947,6.61093171,168.15,168.1,5.88091604]
[1752502301241,6.61093171,168.15,168.06,5.9485]
[1752502301446,6.61093171,168.15,168.07,5.88135267]
[1752502301636,6.61093171,168.15,168.06,5.9485]
[1752502302035,6.61093171,168.15,168.05,12.55993171]
[1752502302240,6.61093171,168.15,168.05,6.61093171]
[1752502302644,180.04,168.18,168.09,6.61093171]
[1752502304142,6.61093171,168.17,168.08,5.9481]
[1752502305048,12.54593171,168.17,168.07,6.61093171]
[1752502305251,6.61093171,168.17,168.07,6.61093171]
[1752502305843,6.61093171,168.15,168.05,6.61093171]
[1752502306146,12.54593171,168.15,168.05,12.55983171]
[1752502306649,6.61093171,168.15,168.05,12.55983171]
[1752502306844,6.61093171,168.15,168.05,6.61093171]
[1752502307045,6.61093171,168.11,168.01,6.61093171]
[1752502307752,6.61093171,168.11,168.01,12.56113171]
[1752502308748,6.61093171,168.11,168.02,5.9502]
[1752502309152,6.61093171,168.11,168.01,6.61093171]
[1752502309347,6.61093171,168.11,168.03,5.9495]
[1752502309553,6.61093171,168.13,168.03,12.56043171]
[1752502310359,6.61093171,168.13,168.03,6.61093171]
[1752502310853,12.54593171,168.13,168.03,6.61093171]
[1752502311355,12.54593171,168.13,168.02,5.9501]
[1752502311558,12.54593171,168.13,168.02,12.56103171]
[1752502312654,12.54593171,168.13,168.02,6.61093171]
[1752502313044,12.54593171,168.13,168.05,5.9491]
[1752502313245,6.61093171,168.13,168.04,6.61093171]
[1752502313655,526.58593171,168.15,168.06,6.61093171]
[1752502314255,526.58593171,168.15,168.06,12.55943171]
[1752502314555,519.975,168.15,168.06,6.61093171]
[1752502314746,514.04,168.15,168.1,6.61093171]
[1752502314947,514.04,168.15,168.07,6.61093171]
[1752502315347,514.04,168.15,168.07,12.55913171]
[1752502315551,514.04,168.15,168.07,6.61093171]
[1752502315751,514.04,168.15,168.05,6.61093171]
[1752502315950,520.65093171,168.15,168.05,6.61093171]
[1752502316154,514.04,168.15,168.09,6.61093171]
[1752502316357,179.98,168.19,168.11,6.61093171]
[1752502316557,179.98,168.19,168.11,12.55763171]
[1752502316854,179.98,168.19,168.13,6.61093171]
[1752502317059,179.98,168.21,168.14,5.9456]
[1752502317459,179.98,168.21,168.13,6.61093171]
[1752502317658,179.98,168.21,168.12,12.55723171]
[1752502317857,179.98,168.21,168.12,6.61093171]
[1752502318160,179.98,168.21,168.13,5.946]
[1752502318354,179.98,168.21,168.12,6.61093171]
[1752502318760,179.98,168.21,168.12,12.55743171]
[1752502318961,179.98,168.21,168.12,6.61093171]
[1752502319256,179.98,168.21,168.14,6.61093171]
[1752502320259,179.98,168.21,168.14,12.55683171]
[1752502320458,514.06,168.23,168.16,6.61093171]
[1752502321364,6.61093171,168.22,168.12,6.61093171]
[1752502321853,514.06,168.23,168.16,6.61093171]
[1752502322056,514.06,168.23,168.18,6.61093171]
[1752502322752,520.67093171,168.23,168.12,6.61093171]
[1752502322956,520.67093171,168.23,168.11,6.61093171]
[1752502323260,6.61093171,168.21,168.1,6.61093171]
[1752502323461,6.61093171,168.21,168.14,5.9459]
[1752502323960,6.61093171,168.21,168.1,6.61093171]
[1752502324262,6.61093171,168.21,168.12,6.61093171]
[1752502324463,6.61093171,168.21,168.15,5.9453]
[1752502324661,520.67093171,168.23,168.14,6.61093171]
[1752502324868,6.61093171,168.21,168.07,4.90178282]
[1752502325068,6.61093171,168.21,168.12,5.9466]
[1752502325364,520.67093171,168.23,168.12,6.61093171]
[1752502325564,520.67093171,168.23,168.14,6.61093171]
[1752502325765,514.06,168.23,168.14,6.61093171]
[1752502327061,514.06,168.23,168.2,5.9435]
[1752502327368,179.86,168.24,168.18,6.61093171]
[1752502327761,179.86,168.24,168.21,5.9432]
[1752502328465,179.86,168.24,168.2,5.9437]
[1752502328666,179.86,168.24,168.17,6.61093171]
[1752502328865,6.61093171,168.21,168.11,6.61093171]
[1752502329058,186.44567595,168.2,168.1,6.60567595]
[1752502329664,186.44567595,168.2,168.14,5.9459]
[1752502330258,186.44567595,168.2,168.1,6.60567595]
[1752502330664,6.60567595,168.18,168.08,6.60567595]
[1752502330865,6.60567595,168.18,168.12,5.9464]
[1752502331569,6.60567595,168.18,168.07,11.50745877]
[1752502331873,4.96074259,168.24,168.13,6.60567595]
[1752502331874,6.60567595,168.24,168.13,6.60567595]
[1752502332071,179.8,168.23,168.16,5.9451]
[1752502332767,179.8,168.23,168.13,6.60567595]
[1752502332965,184.76074259,168.23,168.13,6.60567595]
[1752502333675,11.56641854,168.22,168.13,6.60567595]
[1752502333873,11.56641854,168.22,168.03,520.40724566]
[1752502333874,11.56641854,168.2,168.09,6.60567595]
[1752502334270,6.60567595,168.2,168.09,6.60567595]
[1752502335276,5.935,168.19,168.09,6.60567595]
[1752502335476,5.935,168.19,168.03,532.30644566]
[1752502335477,12.54067595,168.18,168.07,6.60567595]
[1752502335773,6.60567595,168.14,168.05,6.60567595]
[1752502335973,6.60567595,168.14,168.03,6.60567595]
[1752502336274,4.96074259,168.17,168.13,6.60567595]
[1752502336471,4.96074259,168.18,168.01,4.90178282]
[1752502336676,4.96074259,168.18,168.1,6.60567595]
[1752502336876,4.96074259,168.22,168.1,6.60567595]
[1752502337076,179.78,168.21,168.12,6.60567595]
[1752502337375,184.74074259,168.21,168.12,6.60567595]
[1752502337576,179.78,168.21,168.12,6.60567595]
[1752502337772,179.78,168.21,168.05,16.79958282]
[1752502337974,5.935,168.19,168.09,6.60567595]
[1752502338173,5.935,168.19,168.1,6.06313944]
[1752502338370,5.935,168.19,168.11,6.06313944]
[1752502338575,5.935,168.19,168.12,6.06313944]
[1752502338775,11.56641854,168.2,168.13,6.06313944]
[1752502339081,11.56641854,168.2,168.14,6.06313944]
[1752502339280,4.96074259,168.19,168.12,5.9464]
[1752502339581,4.96074259,168.2,168.13,6.06561702]
[1752502339781,4.96074259,168.19,168.14,6.06561702]
[1752502340083,4.96074259,168.19,168.15,6.06561702]
[1752502340381,4.96074259,168.2,168.12,5.9464]
[1752502340581,4.96074259,168.2,168.13,6.06342555]
[1752502340883,11.56641854,168.2,168.14,6.06342555]
[1752502341076,11.56641854,168.2,168.1,6.60567595]
[1752502341077,4.96074259,168.2,168.1,6.60567595]
[1752502341280,4.96074259,168.2,168.12,5.9464]
[1752502341478,4.96074259,168.19,168.13,6.06262492]
[1752502341784,4.96074259,168.2,168.14,6.06262492]
[1752502342082,4.96074259,168.2,168.15,6.06262492]
[1752502342282,4.96074259,168.2,168.12,6.60567595]
[1752502342475,4.96074259,168.2,168.14,5.9457]
[1752502342676,179.78,168.21,168.15,6.06084677]
[1752502342677,184.74074259,168.21,168.15,6.06084677]
[1752502342878,184.74074259,168.21,168.16,6.06084677]
[1752502343078,184.74074259,168.21,168.14,5.9457]
[1752502343278,184.74074259,168.21,168.15,6.0604307]
[1752502343480,184.74074259,168.21,168.16,6.0604307]
[1752502343683,184.74074259,168.21,168.12,6.60567595]
[1752502343983,184.74074259,168.21,168.13,6.06011729]
[1752502344184,184.74074259,168.21,168.14,6.06013518]
[1752502344482,184.76412033,168.21,168.15,6.06013518]